bitfinex/quotes_ETHUSD_20220202
["timestamp","ask_amount","ask_price","bid_price","bid_amount"]
[1643778458598,0.17399,2767.5,2766.6,3.71014]
[1643778458803,1.52769013,2767.4,2766.6,3.71014]
[1643778459002,1.70839013,2767.3,2766.6,3.71014]
[1643778459203,1.52769013,2767.2,2766.6,3.71014]
[1643778459403,1.52769013,2767.1,2766.9,0.72063768]
[1643778459603,2.44626214,2767.6,2766.9,0.72063768]
[1643778459604,1.52769013,2767.0,2766.9,0.72063768]
[1643778459904,1.52769013,2767.0,2766.7,0.3]
[1643778460108,1.52769013,2766.9,2766.7,1.0]
[1643778460303,0.1807,2767.5,2766.7,1.0]
[1643778460502,1.52765865,2767.4,2766.7,1.0]
[1643778460755,1.70825865,2767.3,2766.6,1.0]
[1643778460960,0.67877851,2767.5,2766.6,1.40149072]
[1643778460961,1.52765865,2767.2,2766.6,1.40149072]
[1643778461155,1.52765865,2767.1,2766.8,0.84415367]
[1643778461358,0.85947851,2767.4,2766.8,0.84415367]
[1643778461359,1.52765865,2767.0,2766.8,0.84415367]
[1643778461557,1.52765865,2766.9,2766.8,0.84415367]
[1643778461957,0.85947851,2767.4,2766.8,0.84415367]
[1643778461958,1.52765865,2767.3,2766.8,0.84415367]
[1643778462154,1.52765865,2767.2,2766.8,0.84415367]
[1643778462354,0.1807,2767.4,2766.8,0.84415367]
[1643778462355,1.52765865,2767.1,2766.8,0.84415367]
[1643778462557,1.52765865,2767.0,2766.8,0.84415367]
[1643778462767,1.52765865,2766.9,2766.8,0.84415367]
[1643778463159,1.52765865,2767.3,2766.6,1.0]
[1643778463957,1.52765865,2767.3,2766.6,1.90354]
[1643778464397,0.1807,2767.2,2767.0,0.70965042]
[1643778464600,1.52765865,2767.1,2767.0,0.70965042]
[1643778465005,0.1806,2767.5,2767.0,0.70965042]
[1643778465006,1.52765865,2767.4,2767.0,0.70965042]
[1643778465199,0.1806,2767.3,2767.0,0.70965042]
[1643778465407,1.52765865,2767.2,2766.6,2.1727]
[1643778465800,0.1807,2767.5,2766.6,2.1727]
[1643778465801,1.52765865,2767.1,2766.6,2.1727]
[1643778466000,1.52765865,2767.0,2766.6,2.1727]
[1643778466202,1.52765865,2766.9,2766.7,0.90351]
[1643778466400,0.1807,2767.5,2766.7,0.90351]
[1643778466601,1.52764773,2767.4,2766.8,0.67160062]
[1643778466802,0.1806,2767.3,2766.8,0.67160062]
[1643778467005,1.52764773,2767.2,2766.8,0.67160062]
[1643778467405,1.52764773,2767.1,2766.8,0.67160062]
[1643778467604,1.52764773,2767.0,2766.8,0.67160062]
[1643778467804,1.52764773,2766.9,2766.8,0.67160062]
[1643778468009,1.52764773,2767.4,2766.8,0.67160062]
[1643778468248,0.1806,2767.3,2766.8,0.67160062]
[1643778468447,1.52764773,2767.2,2766.8,1.67160062]
[1643778468651,1.52764773,2767.2,2766.8,0.67160062]
[1643778468847,1.52764773,2767.1,2766.8,1.67160062]
[1643778469048,1.52764773,2767.0,2766.8,0.67160062]
[1643778469250,0.1806,2767.5,2766.8,1.67160062]
[1643778469448,1.52759995,2767.4,2766.8,0.67160062]
[1643778469649,0.1806,2767.3,2766.8,1.67160062]
[1643778469849,1.52759995,2767.2,2766.8,0.67160062]
[1643778470049,1.52759995,2767.2,2766.9,0.90347]
[1643778470251,1.52759995,2767.1,2766.9,0.90347]
[1643778470454,1.52759995,2767.4,2766.9,0.90347]
[1643778470656,1.7081726,2767.3,2766.9,0.90347]
[1643778470855,1.5275726,2767.2,2766.9,0.90347]
[1643778471256,1.5275726,2767.1,2766.9,0.90347]
[1643778471457,0.1806,2767.5,2766.9,0.90347]
[1643778471658,1.52758201,2767.4,2766.9,0.90347]
[1643778471899,0.1806,2767.3,2766.9,0.90347]
[1643778472098,1.52758201,2767.2,2766.9,0.90347]
[1643778472799,1.52758201,2767.1,2766.9,0.90347]
[1643778472999,1.52758201,2767.0,2766.8,0.67160062]
[1643778473306,0.1806,2767.5,2766.8,1.0]
[1643778473501,1.5276718,2767.4,2766.8,1.0]
[1643778473699,0.1806,2767.3,2766.7,1.90353]
[1643778473901,1.5276718,2767.2,2766.7,0.90353]
[1643778474302,1.5276718,2767.1,2766.7,0.90353]
[1643778474500,1.5276718,2767.0,2766.9,0.90097881]
[1643778474700,1.5276718,2767.4,2766.9,0.90097881]
[1643778474900,1.7082718,2767.3,2766.9,0.90097881]
[1643778475102,1.5276718,2767.2,2766.7,2.14883]
[1643778475301,1.5276718,2767.2,2766.7,2.44883]
[1643778475499,1.5276718,2767.1,2766.7,1.20353]
[1643778475751,1.5276718,2767.0,2766.7,2.20353]
[1643778475957,1.5276718,2766.9,2766.7,1.20353]
[1643778476152,1.5276718,2767.4,2766.8,0.7659235]
[1643778476350,10.94566217,2767.6,2766.8,0.7659235]
[1643778476351,1.70826718,2767.3,2766.8,0.7659235]
[1643778476551,1.52766718,2767.2,2766.8,0.7659235]
[1643778476955,1.52766718,2767.1,2766.8,0.7659235]
[1643778477151,1.52766718,2767.0,2766.8,0.7659235]
[1643778477351,0.1807,2767.5,2766.8,0.7659235]
[1643778477552,1.52761827,2767.4,2766.8,0.7659235]
[1643778477755,0.1806,2767.3,2766.8,0.7659235]
[1643778477954,1.52761827,2767.2,2766.8,0.7659235]
[1643778478459,1.52761827,2767.1,2766.7,1.20353]
[1643778478658,1.52761827,2767.0,2766.7,1.20353]
[1643778478855,1.52761827,2766.9,2766.7,1.20353]
[1643778479056,0.1806,2767.5,2766.7,1.20353]
[1643778479256,1.52766714,2767.4,2766.7,1.20353]
[1643778479508,1.51570208,2767.4,2766.7,1.20353]
[1643778479707,0.1806,2767.3,2766.7,1.20353]
[1643778479909,0.1807,2767.5,2766.8,0.85597132]
[1643778480913,2.20527508,2767.5,2766.8,0.85597132]
[1643778481118,0.85947851,2767.5,2766.8,0.85597132]
[1643778481316,0.1807,2767.5,2766.8,0.85597132]
[1643778483558,0.85947851,2767.5,2766.8,0.85597132]
[1643778483869,0.1807,2767.5,2766.8,1.75947132]
[1643778485061,0.1807,2767.5,2766.9,2.06219014]
[1643778485262,0.1807,2767.5,2767.1,0.90329]
[1643778485461,0.1807,2767.5,2767.2,0.515]
[1643778485867,0.1807,2767.5,2767.2,0.815]
[1643778486068,0.1807,2767.5,2767.4,0.3743974]
[1643778486667,0.1807,2767.5,2767.3,3.10839384]
[1643778487402,0.1807,2767.5,2767.4,1.95615007]
[1643778487803,0.1807,2767.5,2767.4,2.95615007]
[1643778490406,0.1807,2767.5,2767.4,3.28130081]
[1643778490649,0.1807,2767.5,2767.4,1.32515074]
[1643778490854,0.1807,2767.5,2767.4,0.32515074]
[1643778491054,0.1807,2767.5,2767.4,1.32515074]
[1643778491460,0.1807,2767.5,2767.4,0.32515074]
[1643778493755,0.17930745,2767.5,2767.4,0.32515074]
[1643778494404,7.47,2767.6,2767.4,0.32515074]
[1643778494806,7.47,2767.6,2767.4,2.23185829]
[1643778495213,7.47,2767.6,2767.5,2.80197557]
[1643778495607,7.47,2767.6,2767.5,3.80197557]
[1643778496113,7.47,2767.6,2767.5,1.90327]
[1643778496411,7.47,2767.6,2767.5,0.90327]
[1643778497712,1.06,2768.0,2767.5,0.90327]
[1643778499558,1.52733515,2767.9,2767.5,0.90327]
[1643778501261,1.52733515,2767.9,2767.2,0.515]
[1643778501465,1.52733515,2767.9,2767.1,0.1806]
[1643778501466,0.67877851,2767.7,2767.1,0.1806]
[1643778501663,0.1806,2767.8,2766.8,1.1558]
[1643778501664,4.05,2767.5,2766.8,1.1558]
[1643778501903,1.52733515,2767.4,2766.8,1.1558]
[1643778502109,1.52733515,2767.3,2766.5,3.0775]
[1643778502305,1.52733515,2767.2,2766.6,3.8759]
[1643778502505,1.52733515,2767.1,2766.6,3.8759]
[1643778502708,1.52733515,2767.0,2766.6,3.8759]
[1643778502905,1.52733515,2766.9,2766.5,4.58594018]
[1643778503116,1.52733515,2766.8,2766.3,0.1807]
[1643778503414,1.4179,2767.4,2766.2,0.1807]
[1643778503415,1.52733515,2766.7,2766.2,0.1807]
[1643778503611,0.90379,2766.9,2766.0,0.1807]
[1643778503821,3.58891709,2766.8,2765.9,0.1807]
[1643778504112,1.52733515,2766.7,2766.1,0.34060896]
[1643778504718,1.52733515,2766.6,2766.1,1.24429896]
[1643778504914,0.90374,2767.0,2766.1,1.24429896]
[1643778505118,1.52775875,2766.9,2766.1,1.24429896]
[1643778505761,1.52775875,2766.9,2765.9,2.38443]
[1643778505762,3.58309642,2766.9,2765.9,2.38443]
[1643778505961,1.52775875,2766.8,2765.9,2.38443]
[1643778506961,2.43150875,2766.8,2766.1,0.43830055]
[1643778507159,1.52775875,2766.7,2766.1,0.43830055]
[1643778509410,0.90369,2767.0,2766.1,0.43830055]
[1643778509609,1.52777528,2766.9,2766.1,0.43830055]
[1643778511617,1.52777528,2766.9,2766.3,0.91053256]
[1643778511819,0.1807,2767.2,2766.3,1.21053256]
[1643778512016,0.90362,2767.3,2766.3,1.21053256]
[1643778512017,1.52762932,2767.1,2766.3,1.21053256]
[1643778512721,1.08432,2767.3,2766.3,1.21053256]
[1643778512918,1.52759935,2767.2,2766.3,1.21053256]
[1643778513155,1.52759935,2767.2,2766.4,0.90356]
[1643778514358,1.52759935,2767.2,2766.4,1.20356]
[1643778514560,1.52759935,2767.2,2766.5,0.90353]
[1643778515160,2.43120935,2767.2,2766.3,1.21053256]
[1643778515365,3.56141816,2767.1,2766.3,0.3]
[1643778515562,3.58427233,2767.1,2766.2,4.82871]
[1643778515764,1.52759935,2767.0,2766.2,4.64801]
[1643778516164,1.52759935,2766.9,2766.2,4.64801]
[1643778516564,1.52759935,2766.9,2766.2,3.40711]
[1643778516767,1.52759935,2766.9,2766.1,0.1807]
[1643778517008,1.52759935,2766.8,2766.0,0.1807]
[1643778517205,2.30761479,2767.0,2765.9,1.1807]
[1643778517206,1.52759935,2766.7,2765.9,1.1807]
[1643778517405,1.52759935,2766.6,2765.9,0.1807]
[1643778517604,1.52759935,2766.5,2765.9,1.1807]
[1643778517804,0.3,2766.5,2766.1,0.44567998]
[1643778518209,0.90375,2766.8,2766.1,0.44567998]
[1643778518405,1.52784744,2766.7,2766.1,0.44567998]
[1643778518605,0.3,2766.8,2766.1,0.44567998]
[1643778518805,1.4836,2766.9,2766.1,0.44567998]
[1643778519005,1.52776998,2766.8,2766.1,0.44567998]
[1643778519611,1.52776998,2766.8,2766.1,1.34934998]
[1643778519808,1.52776998,2766.8,2766.1,2.64934998]
[1643778520008,1.52776998,2766.8,2766.1,1.74567998]
[1643778520410,1.47776998,2766.8,2766.1,1.74567998]
[1643778521260,1.47776998,2766.8,2766.3,0.90362]
[1643778521460,1.47776998,2766.8,2766.3,1.20362]
[1643778521664,0.1807,2767.1,2766.3,1.20362]
[1643778521863,0.1807,2767.1,2766.3,0.90362]
[1643778522364,0.1807,2767.1,2766.4,0.90357]
[1643778522564,1.5274,2767.2,2766.4,0.90357]
[1643778523363,1.2274,2767.2,2766.4,0.90357]
[1643778523565,0.1807,2767.5,2766.7,0.83016429]
[1643778523868,6.8742235,2767.7,2766.7,0.83016429]
[1643778523869,0.1806,2767.6,2766.8,0.90346]
[1643778524064,1.1619,2767.7,2766.8,0.90346]
[1643778524266,1.1619,2767.7,2766.8,2.08406]
[1643778524504,1.1619,2767.7,2766.8,1.08406]
[1643778524702,1.1619,2767.7,2767.4,0.38391936]
[1643778524904,7.47,2767.8,2767.4,0.38391936]
[1643778525502,7.47,2767.8,2767.4,1.47541936]
[1643778525910,7.47,2767.8,2767.4,2.89368936]
[1643778526309,7.47,2767.8,2767.5,1.0]
[1643778526706,1.06,2768.0,2767.4,0.89891936]
[1643778526911,1.06,2768.0,2767.8,0.81561817]
[1643778527114,1.06,2768.0,2767.9,7.315]
[1643778527313,1.06,2768.0,2767.9,8.615]
[1643778527707,0.1806,2768.9,2768.1,21.19]
[1643778527911,0.1806,2769.2,2768.6,21.19]
[1643778528170,7.47,2769.4,2768.6,21.19]
[1643778528171,7.47,2769.4,2768.7,2.57747846]
[1643778528374,0.00272876,2769.7,2768.9,21.19]
[1643778528571,8.14877851,2770.0,2769.1,21.19]
[1643778528866,8.14877851,2770.0,2769.2,0.515]
[1643778528867,7.47,2770.0,2769.2,0.515]
[1643778529067,7.47,2770.0,2769.9,0.44839919]
[1643778529368,7.47,2770.0,2769.8,0.85244736]
[1643778529765,7.47,2770.0,2769.8,1.15244736]
[1643778529969,1.1188449,2770.2,2769.9,2.06247846]
[1643778530166,1.1188449,2770.2,2769.9,23.25247846]
[1643778530370,1.1188449,2770.2,2770.0,0.8483583]
[1643778530567,1.1188449,2770.2,2770.1,0.3]
[1643778530770,1.1188449,2770.2,2770.1,0.815]
[1643778531903,1.1188449,2770.2,2770.1,1.815]
[1643778532106,1.1188449,2770.2,2770.1,0.515]
[1643778532306,1.1188449,2770.2,2769.9,1.0]
[1643778532706,1.1188449,2770.2,2769.8,0.13819997]
[1643778536273,1.1188449,2770.2,2769.2,0.4304]
[1643778536468,0.1804,2770.1,2769.2,0.4304]
[1643778536668,0.1804,2770.1,2769.2,0.1804]
[1643778537169,0.32037996,2770.0,2769.2,0.1804]
[1643778537467,0.1804,2769.9,2768.9,0.00426565]
[1643778537672,0.1804,2769.9,2768.8,0.71249961]
[1643778538468,0.1804,2769.9,2768.9,0.32187831]
[1643778538971,0.1804,2769.9,2768.9,2.25052742]
[1643778539168,0.1804,2769.9,2768.9,0.32187831]
[1643778539418,0.1804,2769.9,2768.9,1.97266257]
[1643778539609,0.1804,2769.9,2768.8,0.71249961]
[1643778539812,1.08331,2769.9,2768.8,1.71249961]
[1643778540008,0.3,2769.8,2768.8,1.71249961]
[1643778540211,0.1804,2769.7,2768.6,0.31859997]
[1643778540609,0.1804,2769.7,2768.8,0.42817144]
[1643778541011,0.6954,2769.7,2768.8,0.42817144]
[1643778541414,0.6954,2769.7,2768.9,0.92849596]
[1643778542817,0.9954,2769.7,2768.6,0.31859997]
[1643778543254,1.2954,2769.7,2768.6,0.31859997]
[1643778543454,1.2954,2769.7,2768.6,0.13819997]
[1643778543653,1.2954,2769.7,2768.7,1.37508898]
[1643778544052,0.9954,2769.7,2768.7,1.37508898]
[1643778544259,0.6954,2769.7,2768.8,1.92974066]
[1643778544454,0.6954,2769.7,2768.7,1.37508898]
[1643778544654,0.6954,2769.7,2768.7,0.95485]
[1643778544855,0.515,2769.7,2768.7,0.95485]
[1643778545057,0.1804,2769.7,2768.8,1.97533681]
[1643778545354,0.1804,2769.9,2768.7,0.95485]
[1643778545559,0.1804,2769.9,2768.7,1.95485]
[1643778545762,0.1804,2769.9,2768.8,2.37164501]
[1643778546364,0.1804,2769.9,2768.8,3.37164501]
[1643778546563,0.1804,2769.9,2768.8,3.36133078]
[1643778546767,0.1804,2769.9,2768.8,3.38691905]
[1643778547008,0.1804,2769.9,2768.8,3.36996148]
[1643778547206,0.1804,2769.9,2768.9,1.93610763]
[1643778547408,0.1804,2769.9,2768.8,2.38728317]
[1643778547607,0.1804,2769.9,2768.8,0.41889281]
[1643778548307,0.1804,2769.9,2768.8,2.37165861]
[1643778551057,0.1804,2769.9,2768.8,3.37165861]
[1643778555422,1.52668169,2769.8,2768.6,0.31859997]
[1643778555623,0.19274454,2769.7,2768.6,0.1804]
[1643778555827,2.04168169,2769.6,2768.6,0.1804]
[1643778556022,0.1804,2769.5,2768.6,0.1804]
[1643778556223,0.515,2769.4,2768.6,0.1804]
[1643778556422,0.515,2769.4,2768.0,1.21848731]
[1643778556626,0.515,2769.4,2768.1,1.99670171]
[1643778556824,0.515,2769.4,2768.1,1.99554759]
[1643778557022,0.815,2769.4,2768.1,1.99554759]
[1643778557227,2.05036898,2769.3,2768.1,1.0]
[1643778557423,2.03824411,2769.3,2768.0,2.21848731]
[1643778557623,2.41529927,2769.3,2768.0,1.51848731]
[1643778557924,2.4286402,2769.3,2768.0,2.81848731]
[1643778558155,0.37705516,2769.3,2768.0,1.81848731]
[1643778558356,0.37705516,2769.3,2768.0,2.81848731]
[1643778558557,2.43111332,2769.3,2768.0,2.81848731]
[1643778558759,2.43111332,2769.3,2768.0,2.51848731]
[1643778559764,0.37705516,2769.3,2768.0,2.51848731]
[1643778559957,0.37705516,2769.3,2768.1,2.08708157]
[1643778560159,0.37705516,2769.3,2768.0,2.51848731]
[1643778560357,2.46429386,2769.3,2768.0,2.81848731]
[1643778560558,0.37705516,2769.3,2768.0,2.81848731]
[1643778560761,0.37705516,2769.3,2768.0,4.65564808]
[1643778561361,0.37705516,2769.3,2768.0,2.21848731]
[1643778561563,0.515,2769.4,2768.1,6.25]
[1643778561762,0.515,2769.4,2768.0,4.3790794]
[1643778562018,0.815,2769.4,2768.5,0.38982333]
[1643778563018,0.815,2769.4,2768.6,0.72561114]
[1643778563616,1.52672672,2769.3,2768.6,0.72561114]
[1643778564121,0.1804,2769.5,2768.6,0.72561114]
[1643778564317,0.3,2769.5,2768.6,0.72561114]
[1643778564516,0.1804,2769.6,2768.6,0.72561114]
[1643778564715,1.82663629,2769.5,2768.6,0.72561114]
[1643778564920,1.70703629,2769.4,2768.6,0.72561114]
[1643778565115,1.52670283,2769.3,2768.6,0.72561114]
[1643778565518,1.52670283,2769.3,2768.5,0.38982333]
[1643778565793,1.82670283,2769.3,2768.3,0.00231035]
[1643778565996,3.57107302,2769.2,2768.3,0.00231035]
[1643778566200,1.70710283,2769.1,2768.3,0.00231035]
[1643778566394,3.90358937,2769.0,2768.3,0.00231035]
[1643778566596,1.94090304,2768.9,2768.3,0.00231035]
[1643778566894,3.63358941,2768.8,2768.3,0.00231035]
[1643778567093,1.52670283,2768.7,2768.3,0.00231035]
[1643778567898,0.41420021,2768.9,2768.3,0.00231035]
[1643778568095,1.52694977,2768.8,2768.3,0.00231035]
[1643778568895,3.59734876,2768.8,2768.3,0.00231035]
[1643778569096,1.52694977,2768.7,2768.3,0.00231035]
[1643778569703,1.52694691,2768.6,2768.3,0.00231035]
[1643778569903,0.41420021,2768.9,2768.3,0.00231035]
[1643778570108,1.52694657,2768.8,2768.3,0.00231035]
[1643778574052,1.82694657,2768.8,2768.3,0.00231035]
[1643778574251,0.1804,2769.0,2768.3,0.00231035]
[1643778574252,1.52694657,2768.7,2768.3,0.00231035]
[1643778574451,1.52694657,2768.9,2768.3,0.00231035]
[1643778575452,1.95527234,2768.9,2767.9,0.72016918]
[1643778575655,1.52694657,2768.8,2767.9,0.72016918]
[1643778577503,1.52694657,2768.8,2767.9,0.00230328]
[1643778577705,2.14058254,2768.7,2767.9,0.00230328]
[1643778577914,2.22254657,2768.6,2767.9,0.00230328]
[1643778578107,1.52694657,2768.5,2767.9,0.00230328]
[1643778578308,0.1806,2768.4,2767.9,0.00230328]
[1643778578512,1.52694657,2768.3,2767.9,0.00230328]
[1643778578711,0.34281355,2768.2,2767.9,0.00230328]
[1643778578906,1.52694657,2768.1,2767.9,0.00230328]
[1643778579331,1.82694657,2768.1,2767.9,0.00230328]
[1643778579506,1.52694657,2768.0,2767.9,0.00230328]
[1643778579707,1.82694657,2768.0,2767.9,0.00230328]
[1643778580107,3.90836772,2768.0,2767.1,3.164]
[1643778580310,1.52694657,2767.9,2767.1,3.164]
[1643778580758,1.52694657,2767.9,2766.9,1.27307758]
[1643778580963,1.52694657,2767.9,2766.9,2.27307758]
[1643778583363,1.52694657,2767.9,2766.9,1.87307758]
[1643778583564,0.1806,2768.1,2766.9,1.87307758]
[1643778583765,1.52723536,2768.0,2766.9,1.87307758]
[1643778584828,3.81710068,2768.0,2766.9,1.57307758]
[1643778585023,1.52723536,2767.9,2766.9,1.57307758]
[1643778586625,0.3,2768.0,2766.9,1.57307758]
[1643778586825,0.58759736,2768.1,2766.9,1.87307758]
[1643778587027,1.52727928,2768.0,2766.9,1.87307758]
[1643778587231,3.56767561,2768.0,2766.9,1.87307758]
[1643778587425,1.52727928,2767.9,2766.8,1.01205854]
[1643778588663,1.82727928,2767.9,2766.9,1.06901367]
[1643778588861,0.3,2767.9,2766.9,1.06901367]
[1643778589160,0.88759736,2768.1,2766.9,1.06901367]
[1643778589359,1.52727542,2768.0,2766.9,1.06901367]
[1643778589960,3.53875989,2768.0,2766.9,1.06901367]
[1643778590160,2.01148447,2768.0,2766.9,1.06901367]
[1643778590561,0.88759736,2768.1,2766.9,1.06901367]
[1643778590762,1.52729736,2768.0,2766.9,1.06901367]
[1643778594014,1.52729736,2768.0,2767.0,1.9054718]
[1643778594212,1.52729736,2768.0,2767.0,2.9054718]
[1643778595213,1.52729736,2768.0,2767.0,2.90844074]
[1643778595513,1.52729736,2768.0,2767.0,1.0]
[1643778595768,1.52729736,2768.0,2767.0,1.95894877]
[1643778595966,1.52729736,2768.0,2767.0,2.95894877]
[1643778596367,1.52729736,2768.0,2767.0,2.9276154]
[1643778596570,1.52729736,2768.0,2767.0,1.0]
[1643778596767,1.52729736,2768.0,2766.9,1.06901367]
[1643778596971,0.1806,2768.1,2767.0,1.91061961]
[1643778597368,1.52726823,2768.0,2767.0,2.91061961]
[1643778597568,0.1806,2768.1,2766.9,2.06901367]
[1643778597773,0.1806,2768.1,2766.9,1.06901367]
[1643778598568,1.52726584,2768.0,2766.9,1.06901367]
[1643778598772,1.52726584,2768.0,2766.9,1.36901367]
[1643778599509,0.1806,2768.1,2767.0,2.18912991]
[1643778599707,0.1806,2768.2,2767.0,4.15162991]
[1643778599908,0.31879997,2768.3,2767.0,4.15162991]
[1643778600108,1.5271493,2768.2,2767.0,4.15162991]
[1643778602315,1.5271493,2768.2,2767.4,0.87323829]
[1643778603869,0.31879997,2768.3,2767.4,0.87323829]
[1643778604066,1.52712654,2768.2,2767.4,0.87323829]
[1643778604667,0.13819997,2768.3,2767.4,0.87323829]
[1643778604871,0.13819997,2768.3,2767.4,3.93393829]
[1643778605067,1.52712483,2768.2,2767.5,1.0]
[1643778605870,1.52712483,2768.2,2767.4,3.0607]
[1643778606068,2.12712483,2768.2,2767.4,3.0607]
[1643778606269,4.15150732,2768.2,2767.0,1.1775]
[1643778606475,0.1806,2768.1,2767.0,1.1775]
[1643778606671,1.70772483,2768.1,2767.0,1.1775]
[1643778606930,3.64544368,2768.0,2766.9,3.0407]
[1643778607123,0.9035524,2767.8,2766.9,3.0407]
[1643778607321,0.39507207,2767.6,2766.9,3.0407]
[1643778607520,2.04901999,2767.5,2766.9,3.0407]
[1643778607720,2.04901999,2767.5,2766.9,0.01]
[1643778609126,0.39507207,2767.6,2766.9,0.01]
[1643778609127,0.69507207,2767.6,2766.9,0.01]
[1643778609521,1.97092868,2767.5,2766.9,0.01]
[1643778611376,2.08467855,2767.7,2766.9,0.01]
[1643778611579,1.52744684,2767.6,2766.9,0.01]
[1643778612781,1.82744684,2767.6,2766.9,0.01]
[1643778612983,0.3,2767.6,2766.9,0.01]
[1643778613381,3.10250247,2767.7,2766.9,0.01]
[1643778613581,1.52745198,2767.6,2766.9,0.01]
[1643778613782,1.82745198,2767.6,2766.9,0.01]
[1643778613983,2.08467855,2767.7,2766.9,0.01]
[1643778614182,1.52742576,2767.6,2766.9,0.01]
[1643778614812,1.95157335,2767.6,2766.9,0.01]
[1643778615011,0.6,2767.7,2766.9,0.01]
[1643778615211,1.8071224,2767.8,2766.9,0.01]
[1643778615413,1.52738939,2767.7,2766.9,0.01]
[1643778616417,1.2434,2767.9,2766.9,1.43629329]
[1643778616619,0.1806,2768.0,2766.9,1.43629329]
[1643778616620,0.1806,2768.0,2767.9,0.00148969]
[1643778616817,0.1806,2768.2,2767.9,0.00148969]
[1643778617022,2.29064838,2768.5,2767.4,0.01217422]
[1643778617023,1.52720736,2768.0,2767.7,0.81526629]
[1643778617216,1.52720736,2768.4,2767.7,0.81526629]
[1643778617416,0.34647432,2768.5,2767.4,0.01217422]
[1643778617417,1.52709988,2768.3,2767.4,1.01217422]
[1643778617619,1.52709988,2768.2,2767.3,0.515]
[1643778617819,1.52709988,2768.1,2767.3,0.515]
[1643778618016,0.1806,2768.6,2767.3,1.82895394]
[1643778618263,1.52710707,2768.5,2767.4,0.90322]
[1643778618462,1.52710707,2768.5,2767.5,1.35528533]
[1643778618862,1.82710707,2768.5,2767.5,1.27408874]
[1643778619061,1.52710707,2768.4,2767.5,1.27408874]
[1643778619263,1.86707597,2768.4,2767.5,1.27408874]
[1643778619669,1.52710707,2768.3,2767.5,1.27408874]
[1643778619864,0.3,2768.2,2767.5,1.27408874]
[1643778620067,0.1806,2768.7,2767.6,0.90316]
[1643778620271,1.52697373,2768.6,2767.6,1.90316]
[1643778620469,1.52697373,2768.6,2767.7,0.515]
[1643778620871,1.52697373,2768.5,2768.0,0.32313688]
[1643778621071,1.52697373,2768.4,2768.0,0.32313688]
[1643778621372,0.3,2768.8,2767.9,0.515]
[1643778621570,1.52694693,2768.7,2767.9,0.515]
[1643778621772,0.3,2768.7,2767.9,0.515]
[1643778622216,0.1806,2768.9,2767.9,1.41804]
[1643778622409,0.1806,2768.9,2768.0,1.10011792]
[1643778622808,0.1806,2768.9,2768.0,2.10011792]
[1643778626761,0.1806,2768.9,2768.0,1.38965999]
[1643778626961,0.4806,2768.9,2768.0,1.0]
[1643778627160,0.4806,2768.9,2767.9,1.515]
[1643778628066,2.89993791,2768.8,2767.9,1.0]
[1643778628268,0.3,2768.7,2767.8,3.0916]
[1643778628461,0.37514107,2768.5,2767.8,3.0916]
[1643778634758,1.3838285,2768.7,2767.8,3.0916]
[1643778634961,1.6838285,2768.7,2767.8,3.0916]
[1643778635962,0.41170366,2768.5,2767.8,3.0916]
[1643778636263,0.41170366,2768.5,2767.9,1.89538383]
[1643778636461,1.6838285,2768.7,2767.9,1.89538383]
[1643778636904,1.6838285,2768.7,2767.8,3.0916]
[1643778637108,1.6838285,2768.7,2767.9,1.89242889]
[1643778637305,0.3,2768.7,2767.9,1.89696301]
[1643778637507,0.43474076,2768.8,2767.9,2.89696301]
[1643778638707,0.43474076,2768.8,2767.9,1.89696301]
[1643778639206,0.43474076,2768.8,2767.9,2.89696301]
[1643778641266,0.43474076,2768.8,2767.9,2.95259001]
[1643778641668,1.52695118,2768.7,2767.9,2.95259001]
[1643778643270,1.52695118,2768.6,2767.9,2.95259001]
[1643778643472,0.9031337,2769.0,2768.0,0.90306]
[1643778643473,0.1806,2769.0,2768.0,0.90306]
[1643778643671,1.5268807,2768.9,2768.1,2.04580616]
[1643778644169,0.1804,2769.1,2768.1,4.32825416]
[1643778644170,1.5268807,2768.8,2768.1,4.32825416]
[1643778644406,1.5268807,2768.7,2768.1,4.32825416]
[1643778644706,0.57944889,2769.1,2768.1,4.32825416]
[1643778644907,1.52683354,2769.0,2768.1,4.32825416]
[1643778645107,1.52683354,2769.0,2768.2,0.903]
[1643778645307,1.52683354,2769.0,2768.3,1.8783375]
[1643778645809,1.52683354,2769.0,2768.3,2.8783375]
[1643778646409,1.52582126,2769.0,2768.3,2.8783375]
[1643778646813,1.52582126,2769.0,2768.3,1.0]
[1643778647015,1.52582126,2769.0,2768.2,2.85680622]
[1643778647216,1.52582126,2769.0,2768.3,1.0]
[1643778647617,1.3914,2769.2,2768.4,1.90139103]
[1643778647817,8.55347,2769.3,2768.4,1.90139103]
[1643778648017,0.1804,2769.3,2768.4,1.90139103]
[1643778648273,0.4804,2769.3,2768.6,0.41940185]
[1643778648467,0.3,2769.3,2768.4,1.90139103]
[1643778648673,0.4804,2769.4,2768.4,1.90139103]
[1643778649072,0.7804,2769.4,2768.4,1.90139103]
[1643778649271,0.7804,2769.4,2768.4,2.80434103]
[1643778651372,0.6,2769.4,2768.4,2.80434103]
[1643778651572,1.64702206,2769.5,2768.5,1.0]
[1643778651775,0.60588779,2769.5,2768.6,2.79166558]
[1643778652014,0.42548779,2769.5,2768.6,2.79166558]
[1643778652210,0.42548779,2769.5,2768.7,1.0]
[1643778652810,0.42548779,2769.5,2768.7,0.9991076]
[1643778654813,1.4186,2769.6,2768.7,0.9991076]
[1643778656086,1.2382,2769.6,2768.7,0.9991076]
[1643778658982,0.87264316,2769.6,2768.7,0.9991076]
[1643778659183,2.88913489,2769.7,2768.7,0.9991076]
[1643778660514,0.44821217,2769.2,2768.7,0.9991076]
[1643778660719,0.74821217,2769.2,2768.2,3.948]
[1643778661130,0.3,2769.1,2768.2,3.948]
[1643778662117,0.97877851,2769.1,2768.2,3.948]
[1643778662917,1.88181851,2769.1,2768.2,3.948]
[1643778663162,2.78489271,2769.1,2768.2,3.948]
[1643778663361,2.1061142,2769.1,2768.2,3.948]
[1643778663562,2.78489271,2769.1,2768.2,3.948]
[1643778664167,0.9031231,2768.9,2768.0,1.2394]
[1643778664368,2.78522851,2768.9,2768.0,1.2394]
[1643778664762,0.3,2768.8,2768.0,1.2394]
[1643778665162,0.3,2768.8,2768.1,0.01]
[1643778665364,0.43942451,2768.7,2768.1,0.01]
[1643778665767,1.34265451,2768.7,2768.1,0.01]